bitfinex/quotes_SOLUSD_20260208
["timestamp","ask_amount","ask_price","bid_price","bid_amount"]
[1770523533546,3.471725,87.029,86.994,3.47272836]
[1770523536545,3.471725,87.029,86.996,3.28160133]
[1770523538945,3.471725,87.029,86.998,3.28160133]
[1770523540150,3.471725,87.029,87.0,3.28160133]
[1770523540338,3.471725,87.029,87.001,3.28160133]
[1770523540743,3.51466024,87.047,87.011,3.28160133]
[1770523543547,3.51466024,87.047,87.013,3.28160133]
[1770523545734,3.51466024,87.047,87.015,3.28160133]
[1770523547650,3.51466024,87.047,87.017,3.28160133]
[1770523548763,3.51466024,87.047,87.019,3.28160133]
[1770523548954,3.51466024,87.039,87.015,3.28160133]
[1770523550769,3.51466024,87.039,87.016,3.28160133]
[1770523551378,3.51466024,87.039,87.018,11.49187524]
[1770523551564,3.51466024,87.039,87.019,3.28160133]
[1770523553776,3.51466024,87.039,86.957,57.01057302]
[1770523553777,3.51466024,87.071,87.021,3.28160133]
[1770523554079,3.51466024,87.061,87.031,3.28160133]
[1770523554280,3.71466024,87.06,87.031,3.28160133]
[1770523555175,11.4864632,87.059,87.031,3.28160133]
[1770523555376,3.51466024,87.058,87.031,3.28160133]
[1770523556377,3.51466024,87.058,87.033,3.28160133]
[1770523560364,3.51466024,87.058,87.035,3.28160133]
[1770523564469,3.51466024,87.058,87.037,3.28160133]
[1770523568291,0.2,87.06,87.037,3.28160133]
[1770523568577,0.2,87.06,87.041,3.45528751]
[1770523572879,0.2,87.08,87.03,32.78819993]
[1770523572880,0.2,87.08,87.031,3.35804438]
[1770523573086,11.48422068,87.076,87.049,3.35804438]
[1770523574970,2.79389737,87.075,87.049,3.35804438]
[1770523575264,0.2,87.08,87.049,3.35804438]
[1770523575485,7.48752367,87.105,87.071,3.35804438]
[1770523575669,7.48752367,87.105,87.091,3.35804438]
[1770523576483,7.48752367,87.105,87.05,40.2067777]
[1770523576484,3.19321109,87.099,87.071,3.35804438]
[1770523576689,3.19321109,87.098,87.071,3.35804438]
[1770523577489,3.19253269,87.096,87.071,3.35804438]
[1770523579482,0.2,87.1,87.081,3.35804438]
[1770523579873,3.38435324,87.1,87.081,3.35804438]
[1770523580984,3.18066412,87.098,87.064,3.35804438]
[1770523581989,4.06258827,87.08,87.053,11.48720708]
[1770523582182,3.17701736,87.079,87.054,3.35804438]
[1770523582681,3.17701736,87.098,87.071,3.35804438]
[1770523582991,3.17341249,87.096,87.066,3.35804438]
[1770523583293,3.17341249,87.089,87.061,3.35804438]
[1770523584095,3.16984903,87.087,87.061,3.35804438]
[1770523586594,11.48290195,87.086,87.061,3.35804438]
[1770523586799,3.16284442,87.085,87.061,3.35804438]
[1770523592491,3.14277598,87.083,87.061,3.35804438]
[1770523592685,3.14277598,87.079,87.053,3.35804438]
[1770523594908,3.13638972,87.077,87.053,3.35804438]
[1770523596707,3.12708278,87.075,87.053,3.35804438]
[1770523601623,3.11227038,87.073,87.053,3.35804438]
[1770523601793,3.11227038,87.073,87.035,28.72386793]
[1770523601794,3.11227038,87.069,87.031,3.35049216]
[1770523602286,3.11227038,87.069,87.045,3.35049216]
[1770523602617,3.11227038,87.069,87.051,3.35049216]
[1770523605006,3.10102131,87.079,87.051,3.35049216]
[1770523607316,3.10102131,87.079,87.053,3.35049216]
[1770523607893,3.09291915,87.077,87.053,3.35049216]
[1770523610203,3.08767162,87.089,87.055,3.35049216]
[1770523611417,3.08767162,87.089,87.061,3.35049216]
[1770523615719,3.0750712,87.088,87.061,3.35049216]
[1770523616022,3.0750712,87.088,87.063,3.35049216]
[1770523617221,3.07023132,87.092,87.063,3.35049216]
[1770523617523,3.07023132,87.099,87.071,3.35049216]
[1770523617719,3.07023132,87.099,87.073,3.35049216]
[1770523618018,0.2,87.1,87.073,3.35049216]
[1770523619118,0.2,87.1,87.075,3.35049216]
[1770523619423,0.2,87.1,87.081,3.35049216]
[1770523620323,0.2,87.1,87.08,4.05916083]
[1770523620324,0.2,87.1,87.083,3.35049216]
[1770523620517,1e-08,87.1,87.084,3.35049216]
[1770523621523,3.06088067,87.099,87.084,3.35049216]
[1770523624433,3.06088067,87.099,87.073,3.35049216]
[1770523625938,3.06088067,87.099,87.075,3.24049191]
[1770523629224,3.06088067,87.099,87.077,3.24049191]
[1770523639332,1e-08,87.1,87.079,3.41089191]
[1770523642220,1e-08,87.1,87.081,3.41089191]
[1770523644222,1e-08,87.1,87.083,3.41089191]
[1770523647048,1e-08,87.1,87.085,3.41089191]
[1770523661332,1e-08,87.1,87.087,3.29079584]
[1770523671283,2.97035064,87.099,87.061,3.29079584]
[1770523672963,2.97035064,87.099,87.063,3.29079584]
[1770523675063,1e-08,87.1,87.07,4.05648096]
[1770523675270,1e-08,87.1,87.081,3.29079584]
[1770523677263,1e-08,87.1,87.083,3.29079584]
[1770523680166,1e-08,87.1,87.084,11.48316567]
[1770523680468,0.2,87.12,87.1,4.05648096]
[1770523680771,7.4231336,87.132,87.112,3.29079584]
[1770523681470,7.4231336,87.132,87.121,3.29079584]
[1770523681665,7.4231336,87.132,87.11,4.05648096]
[1770523681666,3.15865686,87.13,87.114,11.47914259]
[1770523681869,0.2,87.13,87.115,3.29079584]
[1770523682075,0.2,87.13,87.111,3.29079584]
[1770523682076,2.95756008,87.129,87.111,3.29079584]
[1770523686762,2.95226225,87.119,87.079,3.21710965]
[1770523686964,2.95123892,87.109,87.079,3.21710965]
[1770523687166,2.95123892,87.109,87.083,3.21710965]
[1770523689383,2.95123892,87.109,87.085,3.21710965]
[1770523689584,2.94922737,87.119,87.091,3.21710965]
[1770523690882,2.94726177,87.117,87.091,3.21710965]
[1770523693386,2.13270218,87.115,87.091,3.21710965]
[1770523703301,2.13270218,87.115,87.093,3.36247476]
[1770523703876,2.93470379,87.124,87.093,3.36247476]
[1770523705300,2.93388213,87.122,87.093,3.36247476]
[1770523706792,6.98803093,87.12,87.093,3.36247476]
[1770523707093,2.93226702,87.12,87.093,3.36247476]
[1770523707299,2.93226702,87.12,87.101,3.36247476]
[1770523707595,2.93226702,87.127,87.101,3.36247476]
[1770523709796,2.92991325,87.125,87.101,3.36247476]
[1770523711799,11.47789357,87.124,87.101,3.36247476]
[1770523711998,2.92838878,87.123,87.101,3.36247476]
[1770523712900,4.05576391,87.12,87.101,3.36247476]
[1770523713694,2.92838878,87.123,87.101,3.36247476]
[1770523715304,2.92616712,87.127,87.103,3.36247476]
[1770523719614,2.92263124,87.125,87.103,3.36247476]
[1770523721509,2.9212731,87.123,87.103,3.36247476]
[1770523725790,2.91864916,87.119,87.092,3.12593343]
[1770523741121,2.90928602,87.109,87.081,3.12593343]
[1770523741626,2.90928602,87.117,87.083,3.12593343]
[1770523743233,11.47894761,87.116,87.083,3.12593343]
[1770523743407,2.90823268,87.109,87.083,3.12593343]
[1770523743923,2.90771507,87.099,87.064,3.12593343]
[1770523745527,2.90771507,87.099,87.071,3.12593343]
[1770523747631,2.90570339,87.111,87.081,3.10621353]
[1770523747839,2.90570339,87.111,87.091,3.10621353]
[1770523750240,28.89297968,87.13,87.072,28.71187063]
[1770523750241,2.90425447,87.116,87.093,3.10621353]
[1770523756227,2.90106271,87.124,87.095,3.22172531]
[1770523759240,2.89977187,87.122,87.095,3.22172531]
[1770523765224,2.89977187,87.122,87.097,3.22172531]
[1770523769260,0.2,87.13,87.111,3.22172531]
[1770523769554,1.73934659,87.145,87.111,3.22172531]
[1770523770746,1.73934659,87.145,87.121,3.22172531]
[1770523771374,1.73934659,87.145,87.123,3.22172531]
[1770523771661,7.72896063,87.15,87.123,3.22172531]
[1770523772640,7.72896063,87.15,87.125,3.22172531]
[1770523773253,7.72896063,87.15,87.131,3.22172531]
[1770523774753,7.72896063,87.15,87.133,3.22172531]
[1770523776242,7.72896063,87.15,87.134,11.4765763]
[1770523776447,7.72896063,87.15,87.135,3.05744599]
[1770523777559,7.72896063,87.15,87.11,4.05517071]
[1770523777560,1.73598952,87.149,87.11,4.05517071]
[1770523778256,1.73598952,87.149,87.123,11.47794497]
[1770523779161,1.73598952,87.149,87.111,11.47960647]
[1770523779461,1.73598952,87.149,87.112,3.05744599]
[1770523780448,1.73598952,87.149,87.114,3.05744599]
[1770523781966,1.73598952,87.149,87.116,3.05744599]
[1770523785568,1.73598952,87.149,87.118,3.05744599]
[1770523787964,1.73598952,87.149,87.12,4.05517071]
[1770523788171,1.73598952,87.149,87.121,3.05744599]
[1770523788652,0.2,87.15,87.121,3.05744599]
[1770523789571,0.2,87.15,87.123,3.05744599]
[1770523791658,0.2,87.15,87.124,11.47789357]
[1770523791863,3.47803493,87.15,87.125,3.05744599]
[1770523796571,3.27803493,87.149,87.125,3.05744599]
[1770523797059,14.7526359,87.149,87.125,3.05744599]
[1770523797263,3.27803493,87.148,87.121,3.05744599]
[1770523800378,3.27803493,87.148,87.123,3.05744599]
[1770523800560,0.2,87.15,87.131,3.05744599]
[1770523802286,0.2,87.15,87.132,3.05744599]
[1770523803983,3.47803493,87.15,87.132,3.05744599]
[1770523804161,3.27803493,87.149,87.12,3.05744599]
[1770523804574,3.27803493,87.149,87.129,3.05744599]
[1770523805169,3.27803493,87.149,87.12,4.05517071]
[1770523805170,0.2,87.15,87.132,3.05744599]
[1770523806194,0.2,87.15,87.131,11.47697145]
[1770523806195,0.2,87.15,87.134,3.14359875]
[1770523808587,0.2,87.15,87.136,3.14359875]
[1770523809189,3.10986289,87.169,87.14,4.05517071]
[1770523809390,3.10986289,87.169,87.141,3.14359875]
[1770523810290,3.10986289,87.169,87.143,3.14359875]
[1770523815884,3.10986289,87.169,87.145,3.11151647]
[1770523818889,3.10986289,87.169,87.147,3.11151647]
[1770523821102,3.10986289,87.169,87.149,3.11151647]
[1770523830203,0.2,87.17,87.149,3.11151647]
[1770523830913,3.32439195,87.17,87.149,3.11151647]
[1770523836107,3.32439195,87.17,87.151,3.14884431]
[1770523837005,3.32439195,87.17,87.148,11.47473263]
[1770523837006,3.06440609,87.169,87.141,14.6244987]
[1770523837318,3.06440609,87.169,87.142,3.14884431]
[1770523838116,3.06440609,87.168,87.142,3.14884431]
[1770523839318,3.06440609,87.166,87.142,3.14884431]
[1770523839902,3.06440609,87.159,87.142,3.14884431]
[1770523840514,14.53663755,87.167,87.142,3.14884431]
[1770523841014,3.06440609,87.166,87.142,3.14884431]
[1770523842124,3.06440609,87.164,87.142,3.14884431]
[1770523842303,3.06440609,87.159,87.132,3.14884431]
[1770523843803,3.06440609,87.164,87.132,3.14884431]
[1770523845322,3.06440609,87.164,87.136,3.14884431]
[1770523846114,3.06440609,87.164,87.137,11.47618118]
[1770523846317,3.06440609,87.164,87.138,3.14884431]
[1770523847619,0.2,87.17,87.141,3.14884431]
[1770523847928,0.2,87.17,87.151,3.14884431]
[1770523848427,3.06440609,87.169,87.146,3.14884431]
[1770523848602,3.06440609,87.168,87.146,3.14884431]
[1770523851434,3.06440609,87.168,87.146,11.47497699]
[1770523851607,3.06440609,87.168,87.147,3.14884431]
[1770523853125,3.06440609,87.159,87.137,3.14884431]
[1770523855742,3.06440609,87.166,87.139,3.14884431]
[1770523860640,3.26440609,87.17,87.141,3.14884431]
[1770523860813,3.26440609,87.17,87.151,3.14884431]
[1770523863132,3.06440609,87.169,87.151,3.14884431]
[1770523866539,0.2,87.17,87.151,3.14884431]
[1770523867337,3.4598016,87.17,87.151,3.14884431]
[1770523868721,0.2,87.17,87.151,3.14884431]
[1770523877043,0.2,87.17,87.153,3.3261339]
[1770523878346,3.45758101,87.17,87.153,3.3261339]
[1770523883050,0.2,87.17,87.153,3.3261339]
[1770523894052,3.25520503,87.169,87.146,3.3261339]
[1770523894556,3.25520503,87.169,87.149,11.47449627]
[1770523895437,3.25520503,87.169,87.15,3.3261339]
[1770523896560,3.18766943,87.168,87.144,3.15308219]
[1770523896741,3.18766943,87.168,87.139,3.15308219]
[1770523898134,3.18766943,87.166,87.139,3.15308219]
[1770523908867,3.18766943,87.159,87.139,3.15308219]
[1770523910066,3.18766943,87.158,87.139,3.15308219]
[1770523922676,3.18766943,87.167,87.139,3.15308219]
[1770523924370,3.18766943,87.167,87.141,3.15308219]
[1770523925273,3.18766943,87.165,87.141,3.15308219]
[1770523925477,3.18766943,87.159,87.122,3.15308219]
[1770523926259,3.18766943,87.159,87.131,3.24020063]
[1770523926866,3.25102863,87.157,87.131,3.24020063]
[1770523927175,3.25102863,87.149,87.111,3.24020063]
[1770523927582,3.25102863,87.149,87.121,3.24020063]
[1770523930883,3.25065015,87.161,87.123,3.24020063]
[1770523931082,3.25055823,87.165,87.131,3.24020063]
[1770523932186,3.25046737,87.159,87.131,3.24020063]
[1770523934287,3.06376347,87.157,87.131,3.24020063]
[1770523936665,3.06376347,87.155,87.131,3.24020063]
[1770523936866,3.06376347,87.149,87.126,3.05219934]
[1770523938989,3.06376347,87.149,87.117,11.47869177]
[1770523938990,3.06376347,87.164,87.131,3.05219934]
[1770523939200,3.06376347,87.159,87.131,3.05219934]
[1770523939372,3.06376347,87.159,87.127,11.47749836]
[1770523939576,3.06376347,87.149,87.127,3.05219934]
[1770523939986,3.06376347,87.139,87.113,3.05219934]
[1770523940190,4.05029302,87.14,87.113,3.05219934]
[1770523940191,3.06376347,87.13,87.113,3.05219934]
[1770523940990,4.05029302,87.14,87.113,3.05219934]
[1770523941296,3.06376347,87.138,87.113,3.05219934]
[1770523943893,3.06376347,87.129,87.108,3.05219934]
[1770523945576,3.06376347,87.129,87.1,3.05219934]
[1770523947193,3.06376347,87.129,87.061,5.13032502]
[1770523947194,3.06376347,87.109,87.079,3.05219934]
[1770523947397,3.06376347,87.099,87.079,3.05219934]
[1770523948502,4.05029302,87.12,87.072,3.05219934]
[1770523948503,4.05029302,87.09,87.072,3.05219934]
[1770523948802,3.06376347,87.089,87.072,3.05219934]
[1770523949018,3.06376347,87.089,87.064,3.05219934]
[1770523950380,3.06376347,87.079,87.063,103.26574365]
[1770523951398,3.06376347,87.079,87.06,0.2]
[1770523951906,3.06376347,87.098,87.065,3.05219934]
[1770523952281,3.06376347,87.089,87.065,3.05219934]
[1770523952696,3.06376347,87.089,87.06,0.2]
[1770523952904,3.06376347,87.079,87.06,0.2]
[1770523953300,3.06376347,87.079,87.06,3.25219934]
[1770523955095,3.06376347,87.069,87.06,0.2]
[1770523956006,11.48462844,87.073,87.06,0.2]
[1770523956304,3.05609616,87.074,87.06,0.2]
[1770523958407,3.05609616,87.079,87.061,3.25297398]
[1770523958996,7.68304925,87.095,87.071,3.25297398]
[1770523959514,10.73914541,87.095,87.071,3.25297398]
[1770523959691,3.05609616,87.094,87.071,3.25297398]
[1770523960999,3.05609616,87.092,87.066,3.25297398]
[1770523963414,3.05609616,87.089,87.061,3.25297398]
[1770523968115,3.05609616,87.089,87.062,3.25297398]
[1770523978121,3.86999994,87.094,87.064,3.25297398]
[1770523978312,6.9260961,87.094,87.071,3.25297398]
[1770523978713,3.05609616,87.093,87.071,3.25297398]
[1770523979626,3.05609616,87.093,87.072,3.25297398]
[1770523980432,3.86999994,87.094,87.06,4.25917537]
[1770523980433,3.05609616,87.089,87.064,3.25297398]
[1770523982728,3.05609616,87.087,87.064,3.25297398]
[1770523983025,3.05609616,87.079,87.06,3.45297398]
[1770523983201,3.05609616,87.079,87.06,0.2]
[1770523983406,4.05917537,87.07,87.06,0.2]
[1770523983934,7.11527153,87.07,87.06,0.2]
[1770523984533,3.05609616,87.07,87.06,0.2]
[1770523985024,3.05609616,87.068,87.05,0.2]
[1770523985231,3.05609616,87.059,87.04,0.2]
[1770523985924,3.05609616,87.059,87.01,4.05917537]
[1770523985925,3.24674232,87.049,87.019,3.31823388]
[1770523986113,3.04669529,87.039,87.019,3.31823388]
[1770523986517,3.04669529,87.039,87.004,3.31823388]
[1770523986729,3.04669529,87.029,87.0,0.1]
[1770523986915,4.05917537,87.01,87.0,0.1]
[1770523987228,3.0466488,87.009,87.0,0.1]
[1770523987430,10.61988263,87.009,87.0,0.1]
[1770523987724,6.01680207,87.009,87.001,3.31823388]
[1770523988109,1e-08,87.009,87.002,3.31823388]
[1770523992347,3.32761374,87.008,86.99,0.1]
[1770523992622,3.08983747,87.007,86.99,0.1]
[1770523993313,3.08983747,87.005,86.99,0.1]
[1770523993522,3.08983747,87.003,86.99,0.1]
[1770523994936,3.08983747,87.001,86.99,0.1]
[1770523995146,0.72100001,87.002,86.98,0.1]
[1770523995147,3.08983747,86.999,86.98,0.1]
[1770523995442,3.08983747,86.998,86.98,0.1]
[1770523996331,3.08983747,86.996,86.98,0.1]
[1770523997537,3.08983747,86.996,86.97,0.1]
[1770523997538,3.08983747,86.989,86.97,0.1]
[1770523997729,3.08983747,86.979,86.97,0.1]
[1770523998829,3.08983747,86.979,86.96,0.1]
[1770523999220,3.08983747,86.979,86.96,3.45898215]
[1770524000235,3.08983747,86.979,86.96,0.1]
[1770524000429,3.08983747,86.979,86.921,63.20116271]
[1770524000430,3.08983747,86.969,86.933,3.35898215]
[1770524000631,3.08983747,86.968,86.938,3.35898215]
[1770524000836,4.05917537,86.96,86.938,3.35898215]
[1770524001035,3.08983747,86.949,86.93,0.1]
[1770524001523,3.08983747,86.949,86.93,3.45898215]
[1770524001837,4.05917537,86.96,86.93,3.45898215]
[1770524001838,3.08983747,86.954,86.93,3.45898215]
[1770524002217,3.08983747,86.954,86.932,3.35898215]
[1770524002538,3.08983747,86.963,86.934,3.35898215]
[1770524003334,3.08983747,86.959,86.934,3.35898215]
[1770524003734,4.05917537,86.98,86.941,3.35898215]
[1770524003940,3.08983747,86.979,86.941,3.35898215]
[1770524005438,3.08983747,86.979,86.942,11.50192082]
[1770524005741,3.08983747,86.979,86.943,3.35898215]
[1770524006642,3.08983747,86.988,86.951,3.35898215]
[1770524006830,10.4372594,86.987,86.96,4.05917537]
[1770524007032,7.34691617,86.986,86.961,3.35898215]
[1770524007251,10.43675364,86.986,86.961,3.35898215]
[1770524007451,7.34602013,86.985,86.961,3.35898215]
[1770524007628,10.4358576,86.985,86.961,14.85837116]
[1770524007948,10.43172275,86.984,86.962,3.35898215]
[1770524008148,7.34311911,86.983,86.962,3.35898215]
[1770524008443,3.08983747,86.982,86.962,3.35898215]
[1770524008640,1.68279999,86.981,86.962,3.35898215]
[1770524009841,3.08983747,86.979,86.962,3.35898215]
[1770524010019,3.25199991,86.978,86.962,3.35898215]
[1770524010216,3.25199991,86.978,86.947,11.50117643]
[1770524010217,3.08983747,86.977,86.956,3.35898215]
[1770524010519,3.08983747,86.977,86.89,57.11977695]
[1770524010520,3.08983747,86.966,86.91,3.45898215]
[1770524010720,18.82530014,86.977,86.911,3.35898215]
[1770524010721,3.08983747,86.939,86.911,3.35898215]
[1770524011019,4.05917537,86.96,86.921,3.35898215]
[1770524011221,7.31601909,86.959,86.921,3.35898215]
[1770524011422,4.07202932,86.95,86.921,3.35898215]
[1770524011628,4.07202932,86.94,86.921,3.35898215]
[1770524011923,4.07202932,86.95,86.921,3.35898215]
[1770524012141,7.31623194,86.949,86.921,3.35898215]
[1770524012942,3.08983747,86.948,86.921,3.35898215]
[1770524013538,3.08983747,86.948,86.91,15.6781376]
[1770524013842,3.08983747,86.948,86.914,11.50552923]
[1770524014338,3.08983747,86.946,86.912,11.50582038]
[1770524014543,3.08983747,86.944,86.912,11.50582038]
[1770524014738,3.08983747,86.943,86.915,11.50549387]
[1770524014952,7.29962805,86.944,86.92,4.07202932]
[1770524015319,7.29962805,86.944,86.93,4.07202932]
[1770524015529,7.29962805,86.944,86.931,3.35898215]
[1770524015943,4.07202932,86.97,86.93,4.07202932]
[1770524016135,7.29134159,86.969,86.93,4.07202932]
[1770524016322,7.29134159,86.969,86.91,0.1]
[1770524016323,7.29134159,86.969,86.943,3.20210607]
[1770524016526,7.29134159,86.969,86.951,3.20210607]
[1770524016727,3.1720987,86.985,86.961,3.20210607]
[1770524017442,5.98679995,86.988,86.97,4.07202932]
[1770524017662,5.98679995,86.988,86.971,3.20210607]
[1770524017940,3.1720987,86.987,86.961,3.20210607]
[1770524018929,3.1720987,86.985,86.961,3.20210607]
[1770524019129,3.1720987,86.985,86.921,5.13032502]
[1770524019130,3.1720987,86.985,86.954,3.20210607]
[1770524019726,3.1720987,86.979,86.954,3.20210607]
[1770524020246,3.1720987,86.979,86.947,3.20210607]
[1770524020621,3.1720987,86.979,86.93,28.7587663]
[1770524020622,3.1720987,86.969,86.938,3.20210607]
[1770524021253,3.1720987,86.968,86.938,3.20210607]
[1770524021432,3.1720987,86.959,86.938,3.20210607]
[1770524021633,3.1720987,86.949,86.927,3.20210607]
[1770524021835,3.1720987,86.949,86.919,3.20210607]
[1770524022726,4.07202932,86.94,86.919,3.20210607]
[1770524022927,3.1720987,86.939,86.919,3.20210607]
[1770524023124,3.1720987,86.939,86.913,3.20210607]
[1770524023651,3.1720987,86.939,86.91,0.1]
[1770524023652,3.1720987,86.937,86.91,0.1]
[1770524023850,3.1720987,86.937,86.911,3.20210607]
[1770524024930,3.1720987,86.937,86.91,0.1]
[1770524025350,3.1720987,86.937,86.911,3.20210607]
[1770524026534,11.50271464,86.936,86.911,3.20210607]
[1770524026741,14.67481334,86.936,86.911,3.20210607]
[1770524027041,14.67481334,86.936,86.91,0.1]
[1770524027042,3.1720987,86.929,86.91,0.1]
[1770524029248,11.50377323,86.928,86.91,0.1]
[1770524029448,3.1720987,86.927,86.91,0.1]
[1770524030058,3.1720987,86.919,86.89,0.1]
[1770524030381,3.1720987,86.906,86.889,1270.80101716]
[1770524030665,3.1720987,86.914,86.889,1270.80101716]
[1770524030856,3.1720987,86.914,86.89,3.20210607]
[1770524032683,3.1720987,86.921,86.891,3.20210607]
[1770524032977,11.50459068,86.922,86.891,3.20210607]
[1770524033676,3.1720987,86.926,86.891,3.20210607]
[1770524035275,3.1720987,86.919,86.889,1270.80101716]
[1770524035477,3.1720987,86.909,86.889,1274.00312323]
[1770524035852,3.1720987,86.909,86.889,1270.80101716]
[1770524036073,3.1720987,86.909,86.89,3.20210607]
[1770524036286,10.90876801,86.91,86.89,3.20210607]
[1770524036573,11.50610899,86.911,86.89,3.20210607]
[1770524037874,3.1720987,86.915,86.89,3.20210607]
[1770524038081,3.1720987,86.928,86.892,3.20210607]
[1770524039376,3.1720987,86.919,86.892,3.20210607]
[1770524041597,14.67711868,86.919,86.892,3.20210607]
[1770524041762,3.1720987,86.918,86.892,3.20210607]
[1770524045561,3.1720987,86.916,86.889,1270.80101716]
[1770524045768,3.1720987,86.916,86.89,3.38613824]
[1770524047482,3.06730281,86.914,86.89,3.38613824]
[1770524050388,3.06730281,86.912,86.89,3.38613824]
[1770524051389,3.06730281,86.917,86.89,3.38613824]
[1770524051970,3.06730281,86.924,86.892,3.38613824]
[1770524052569,3.06730281,86.924,86.894,3.2121084]
[1770524053591,11.50152395,86.945,86.901,3.2121084]
[1770524053776,4.07517447,86.94,86.901,3.2121084]
[1770524054188,11.50231771,86.939,86.902,11.50721502]
[1770524054387,11.50231771,86.939,86.903,3.2121084]
[1770524055791,3.1420641,86.936,86.905,3.2121084]
[1770524058594,3.1420641,86.936,86.907,3.2121084]
[1770524058793,3.1420641,86.934,86.907,3.2121084]
[1770524059798,4.07517447,86.92,86.896,3.2121084]
[1770524059995,7.21723857,86.92,86.9,3.2121084]
[1770524060177,4.07517447,86.92,86.9,3.2121084]
[1770524060378,3.1420641,86.919,86.9,3.2121084]
[1770524062606,4.07517447,86.92,86.902,3.2121084]
[1770524063089,3.1420641,86.925,86.902,3.2121084]
[1770524067384,7.21723857,86.94,86.904,3.2121084]
[1770524067596,3.1420641,86.939,86.904,3.2121084]
[1770524068597,3.1420641,86.938,86.906,3.2121084]
[1770524069605,14.64451412,86.938,86.906,3.2121084]
[1770524069804,3.1420641,86.938,86.906,3.2121084]
[1770524070403,3.1420641,86.929,86.906,3.2121084]
[1770524071632,3.1420641,86.929,86.889,1270.80101716]
[1770524071784,3.1420641,86.919,86.889,1270.80101716]
[1770524072304,3.1420641,86.919,86.891,11.50861984]
[1770524073205,3.1420641,86.917,86.889,1270.80101716]
[1770524073397,11.50509675,86.918,86.889,1270.80101716]
[1770524073398,3.1420641,86.904,86.889,1270.80101716]
[1770524074984,3.1420641,86.914,86.89,3.2121084]
[1770524075313,3.1420641,86.909,86.889,1274.01312556]
[1770524076298,3.2842806,86.907,86.889,1274.01312556]
[1770524076498,3.2842806,86.907,86.89,3.21436117]
[1770524078490,3.2842806,86.924,86.892,3.21436117]
[1770524078690,3.2842806,86.924,86.901,3.21436117]
[1770524079406,3.2842806,86.941,86.911,3.21436117]
[1770524079589,3.2842806,86.939,86.911,3.21436117]
[1770524082109,3.2842806,86.946,86.911,3.21436117]
[1770524082996,3.2842806,86.939,86.911,3.21436117]
[1770524083702,3.2842806,86.939,86.912,3.21436117]
[1770524083901,3.2842806,86.945,86.912,3.21436117]
[1770524084103,3.2842806,86.945,86.914,3.21436117]
[1770524086198,5.36086188,86.976,86.914,3.21436117]
[1770524086199,3.2842806,86.939,86.914,3.21436117]
[1770524087722,3.2842806,86.939,86.908,3.21436117]
[1770524088222,3.2842806,86.937,86.908,3.21436117]
[1770524089210,3.2842806,86.937,86.91,3.21436117]
[1770524090625,4.07393776,86.93,86.91,3.21436117]
[1770524092821,3.2842806,86.931,86.91,3.21436117]
[1770524093017,3.2842806,86.931,86.912,3.21436117]
[1770524094926,3.2842806,86.929,86.896,3.21436117]
[1770524097228,11.50350857,86.93,86.901,3.21436117]
[1770524097524,3.2842806,86.934,86.901,3.21436117]
[1770524100228,3.2842806,86.929,86.903,3.21436117]
[1770524100945,3.2842806,86.919,86.889,1270.80101716]
[1770524101126,7.35821836,86.9,86.889,1270.80101716]
[1770524101440,3.2842806,86.909,86.889,1270.80101716]
[1770524102114,3.2842806,86.909,86.89,3.21436117]
[1770524102618,3.2842806,86.907,86.89,3.21436117]
[1770524102931,3.2842806,86.907,86.889,1270.80101716]
[1770524104520,3.2842806,86.905,86.889,1270.80101716]
[1770524105632,7.22034488,86.91,86.89,3.22107748]
[1770524105830,3.14640712,86.91,86.89,3.22107748]
[1770524106135,3.14640712,86.909,86.89,3.22107748]
[1770524106319,3.14640712,86.908,86.89,3.22107748]
[1770524106833,3.14640712,86.906,86.89,3.22107748]
[1770524107034,7.22034488,86.9,86.889,1270.80101716]
[1770524107733,4.07393776,86.9,86.889,1270.80101716]
[1770524107939,3.14640712,86.905,86.889,1270.80101716]
[1770524108237,14.65335731,86.904,86.889,1270.80101716]
[1770524108626,0.92175919,86.899,86.889,1181.635502]
[1770524108822,0.92175919,86.899,86.749,46.10983444]
[1770524108823,4.07393776,86.87,86.85,1e-08]
[1770524109015,5.96564115,86.889,86.85,1e-08]
[1770524109016,5.36086188,86.888,86.851,3.38767603]
[1770524109225,3.14640712,86.877,86.852,21.62]
[1770524109839,3.14640712,86.888,86.852,21.62]
[1770524110018,5.96564115,86.889,86.87,4.07393776]
[1770524110217,5.96564115,86.889,86.871,34.26]
[1770524110420,5.13032502,86.92,86.88,4.07393776]
[1770524110421,3.14640712,86.908,86.88,4.07393776]
[1770524110622,3.14640712,86.915,86.89,4.07393776]
[1770524110835,3.14640712,86.925,86.891,19.02]
[1770524111224,3.14640712,86.925,86.893,3.22107748]
[1770524111429,3.14640712,86.925,86.9,10.91121164]
[1770524111639,3.14640712,86.938,86.901,3.22107748]
[1770524111822,3.14640712,86.938,86.903,3.22107748]
[1770524112141,3.14640712,86.937,86.911,3.22107748]
[1770524112322,3.14640712,86.937,86.912,49.20107748]
[1770524112838,3.56722519,86.942,86.913,3.72788792]
[1770524113139,3.56722519,86.969,86.921,3.72788792]